fUSD/lending_fUSD_20250617
["ID","MTS","AMOUNT","RATE_DAILY","PERIOD"]
[366212823,1750123848420,-490.0,0.00016784,2]
[366212824,1750123848431,-490.0,0.00016784,2]
[366212825,1750123848440,-490.0,0.00016784,2]
[366212826,1750123848450,-490.0,0.00016784,2]
[366212827,1750123848460,-490.0,0.00016784,2]
[366212828,1750123848470,-219.52,0.00016784,2]
[366212829,1750123848480,-490.0,0.00016784,2]
[366212830,1750123848492,-490.0,0.00016784,2]
[366212831,1750123848503,-490.0,0.00016784,2]
[366212832,1750123848514,-490.0,0.00016784,2]
[366212833,1750123848524,-333.97,0.00016784,2]
[366212834,1750123848534,-556.69,0.00016784,2]
[366212835,1750123848545,-490.0,0.00016784,2]
[366212836,1750123848555,-490.0,0.00016784,2]
[366212837,1750123848566,-490.0,0.00016784,2]
[366212838,1750123848576,-490.0,0.00016784,2]
[366212839,1750123848586,-490.0,0.00016784,2]
[366212840,1750123848597,-490.0,0.00016784,2]
[366212841,1750123848608,-490.0,0.00016784,2]
[366212842,1750123848630,-490.0,0.00016784,2]
[366212843,1750123848642,-490.0,0.00016784,2]
[366212844,1750123848653,-490.0,0.00016784,2]
[366212845,1750123848663,-490.0,0.00016784,2]
[366212846,1750123848674,-550.1,0.00016784,2]
[366212847,1750123848684,-490.0,0.00016784,2]
[366212848,1750123848694,-490.0,0.00016784,2]
[366212849,1750123848704,-490.0,0.00016784,2]
[366212850,1750123848714,-490.0,0.00016784,2]
[366212851,1750123848724,-490.0,0.00016784,2]
[366212852,1750123848734,-1116.57,0.00016784,2]
[366212853,1750123848743,-490.0,0.00016784,2]
[366212854,1750123848754,-490.0,0.00016784,2]
[366212855,1750123848764,-490.0,0.00016784,2]
[366212856,1750123848774,-490.0,0.00016784,2]
[366212857,1750123848784,-490.0,0.00016784,2]
[366212858,1750123848794,-1114.34,0.00016784,2]
[366212859,1750123848803,-490.0,0.00016784,2]
[366212860,1750123848814,-490.0,0.00016784,2]
[366212861,1750123848823,-490.0,0.00016784,2]
[366212862,1750123848835,-490.0,0.00016784,2]
[366212863,1750123848844,-314.93552075,0.00016784,2]
[366212864,1750123849212,-175.06447925,0.00016784,2]
[366212865,1750123849223,-127.34125308,0.00016784,2]
[366212866,1750123849236,-474.98942845,0.00016784,2]
[366212867,1750123849246,-1001.42,0.00016784,2]
[366212868,1750123849256,-490.0,0.00016784,2]
[366212869,1750123849266,-409.12,0.00016784,2]
[366212870,1750123849276,-587.69,0.00016784,2]
[366212871,1750123849287,-490.0,0.00016784,2]
[366212872,1750123849297,-516.68,0.00016784,2]
[366212873,1750123849308,-490.0,0.00016784,2]
[366212874,1750123849318,-978.55,0.00016784,2]
[366212875,1750123849328,-587.47,0.00016784,2]
[366212876,1750123849338,-490.0,0.00016784,2]
[366212877,1750123849347,-490.0,0.00016784,2]
[366212878,1750123849357,-490.0,0.00016784,2]
[366212879,1750123849368,-490.0,0.00016784,2]
[366212880,1750123849378,-490.0,0.00016784,2]
[366212881,1750123849388,-490.0,0.00016784,2]
[366212882,1750123849398,-490.0,0.00016784,2]
[366212883,1750123849413,-490.0,0.00016784,2]
[366212884,1750123849423,-490.0,0.00016784,2]
[366212885,1750123849433,-490.0,0.00016784,2]
[366212886,1750123849443,-490.0,0.00016784,2]
[366212887,1750123849453,-1417.64,0.00016784,2]
[366212888,1750123849463,-490.0,0.00016784,2]
[366212889,1750123849473,-490.0,0.00016784,2]
[366212890,1750123849484,-490.0,0.00016784,2]
[366212891,1750123849493,-1310.61,0.00016784,2]
[366212892,1750123849504,-2902.24,0.00016784,2]
[366212893,1750123849514,-490.0,0.00016784,2]
[366212894,1750123849524,-490.0,0.00016784,2]
[366212895,1750123849534,-530.89,0.00016784,2]
[366212896,1750123849544,-490.0,0.00016784,2]
[366212897,1750123849554,-1068.35,0.00016784,2]
[366212898,1750123849564,-613.59,0.00016784,2]
[366212899,1750123849574,-490.0,0.00016784,2]
[366212900,1750123849584,-490.0,0.00016784,2]
[366212901,1750123849594,-490.0,0.00016784,2]
[366212902,1750123849605,-490.0,0.00016784,2]
[366212903,1750123849616,-490.0,0.00016784,2]
[366212904,1750123849631,-836.26,0.00016784,2]
[366212905,1750123849641,-490.0,0.00016784,2]
[366212906,1750123849651,-495.96,0.00016784,2]
[366212907,1750123849661,-490.0,0.00016784,2]
[366212908,1750123849671,-2136.7,0.00016784,2]
[366212909,1750123849681,-548.55,0.00016784,2]
[366212910,1750123849691,-490.0,0.00016784,2]
[366212911,1750123849701,-2519.89,0.00016784,2]
[366212912,1750123849713,-490.0,0.00016784,2]
[366212913,1750123849723,-319.66,0.00016784,2]
[366212914,1750123849733,-522.58,0.00016784,2]
[366212915,1750123849743,-490.0,0.00016784,2]
[366212916,1750123849753,-267.36,0.00016784,2]
[366212917,1750123849763,-490.0,0.00016784,2]
[366212918,1750123849773,-490.0,0.00016784,2]
[366212919,1750123849782,-490.0,0.00016784,2]
[366212920,1750123849792,-490.0,0.00016784,2]
[366212921,1750123849802,-490.0,0.00016784,2]
[366212922,1750123849812,-490.0,0.00016784,2]
[366212923,1750123849822,-490.0,0.00016784,2]
[366212924,1750123849832,-490.0,0.00016784,2]
[366212925,1750123849841,-490.0,0.00016784,2]
[366212926,1750123849852,-494.32,0.00016784,2]
[366212927,1750123849862,-490.0,0.00016784,2]
[366212928,1750123849871,-490.0,0.00016784,2]
[366212929,1750123849881,-567.97,0.00016784,2]
[366212930,1750123849891,-490.0,0.00016784,2]
[366212931,1750123849901,-490.0,0.00016784,2]
[366212932,1750123849911,-1113.71,0.00016784,2]
[366212933,1750123849922,-490.0,0.00016784,2]
[366212934,1750123849931,-490.0,0.00016784,2]
[366212935,1750123849940,-490.0,0.00016784,2]
[366212936,1750123849950,-490.0,0.00016784,2]
[366212937,1750123849959,-270.66,0.00016784,2]
[366212938,1750123849970,-490.0,0.00016784,2]
[366212939,1750123849982,-490.0,0.00016784,2]
[366212940,1750123849992,-490.0,0.00016784,2]
[366212941,1750123850002,-3941.04,0.00016784,2]
[366212942,1750123850013,-577.15538439,0.00016784,2]
[366212943,1750123850023,-490.0,0.00016784,2]
[366212944,1750123850032,-599.36,0.00016784,2]
[366212945,1750123850042,-490.0,0.00016784,2]
[366212946,1750123850053,-490.0,0.00016784,2]
[366212947,1750123850064,-490.0,0.00016784,2]
[366212948,1750123850074,-490.0,0.00016784,2]
[366212949,1750123850083,-490.0,0.00016784,2]
[366212950,1750123850094,-255.42466476,0.00016784,2]
[366212951,1750123850103,-490.0,0.00016785,2]
[366212952,1750123850113,-490.0,0.00016785,2]
[366212953,1750123850122,-490.0,0.00016785,2]
[366212954,1750123850132,-490.0,0.00016785,2]
[366212955,1750123850142,-490.0,0.00016785,2]
[366212956,1750123850151,-567.92,0.00016785,2]
[366212957,1750123850161,-490.0,0.00016785,2]
[366212958,1750123850172,-490.0,0.00016785,2]
[366212959,1750123850182,-490.0,0.00016785,2]
[366212960,1750123850191,-490.0,0.00016785,2]
[366212961,1750123850201,-585.587,0.00016785,2]
[366212962,1750123850211,-490.0,0.00016785,2]
[366212963,1750123850222,-512.08,0.00016785,2]
[366212964,1750123850231,-490.0,0.00016785,2]
[366212965,1750123850241,-490.0,0.00016785,2]
[366212966,1750123850250,-490.0,0.00016785,2]
[366212967,1750123850260,-490.0,0.00016785,2]
[366212968,1750123850270,-541.91,0.00016785,2]
[366212969,1750123850280,-268.54971677,0.00016785,2]
[366212970,1750123850290,-490.0,0.00016785,2]
[366212971,1750123850299,-490.0,0.00016785,2]
[366212972,1750123850309,-490.0,0.00016785,2]
[366212973,1750123850319,-191.81,0.00016785,2]
[366212974,1750123850329,-490.0,0.00016785,2]
[366212975,1750123850338,-490.0,0.00016785,2]
[366212976,1750123850348,-490.0,0.00016785,2]
[366212977,1750123850357,-490.0,0.00016785,2]
[366212978,1750123850366,-490.0,0.00016785,2]
[366212979,1750123850376,-490.0,0.00016785,2]
[366212980,1750123850386,-490.0,0.00016785,2]
[366212981,1750123850395,-490.0,0.00016785,2]
[366212982,1750123850408,-490.0,0.00016785,2]
[366212983,1750123850419,-490.0,0.00016785,2]
[366212984,1750123850429,-490.0,0.00016785,2]
[366212985,1750123850440,-490.0,0.00016785,2]
[366212986,1750123850450,-490.0,0.00016785,2]
[366212987,1750123850460,-186.44238432,0.00016785,2]
[366212988,1750123850470,-490.0,0.00016785,2]
[366212989,1750123850480,-489.35303997,0.00016785,2]
[366212990,1750123850489,-490.0,0.00016785,2]
[366212991,1750123850499,-490.0,0.00016785,2]
[366212992,1750123850509,-490.0,0.00016785,2]
[366212993,1750123850519,-427.44,0.00016785,2]
[366212994,1750123850529,-532.13144516,0.00016785,2]
[366212995,1750123850538,-490.0,0.00016785,2]
[366212996,1750123850548,-300.0,0.00016785,2]
[366212997,1750123850557,-490.0,0.00016785,2]
[366212998,1750123850568,-490.0,0.00016785,2]
[366212999,1750123850578,-490.0,0.00016785,2]
[366213000,1750123850588,-576.22,0.00016785,2]
[366213001,1750123850597,-490.0,0.00016785,2]
[366213002,1750123850607,-490.0,0.00016785,2]
[366213003,1750123850617,-490.0,0.00016785,2]
[366213004,1750123850627,-328.81348195,0.00016785,2]
[366213005,1750123850641,-225.26651805,0.00016785,2]
[366213006,1750123850651,-490.0,0.00016785,2]
[366213007,1750123850662,-490.0,0.00016785,2]
[366213008,1750123850673,-490.0,0.00016785,2]
[366213009,1750123850683,-490.0,0.00016785,2]
[366213010,1750123850693,-490.0,0.00016785,2]
[366213011,1750123850703,-490.0,0.00016785,2]
[366213012,1750123850713,-490.0,0.00016785,2]
[366213013,1750123850723,-490.0,0.00016785,2]
[366213014,1750123850733,-490.0,0.00016785,2]
[366213015,1750123850743,-490.0,0.00016785,2]
[366213016,1750123850752,-600.88,0.00016785,2]
[366213017,1750123850762,-366.20402219,0.00016785,2]
[366213018,1750123850772,-490.0,0.00016785,2]
[366213019,1750123850781,-247.66236337,0.00016785,2]
[366213020,1750123850791,-490.0,0.00016785,2]
[366213021,1750123850801,-490.0,0.00016785,2]
[366213022,1750123850811,-490.0,0.00016785,2]
[366213023,1750123850820,-490.0,0.00016785,2]
[366213024,1750123850831,-616.5417806,0.00016785,2]
[366213025,1750123850841,-490.0,0.00016785,2]
[366213026,1750123850850,-490.0,0.00016785,2]
[366213027,1750123850860,-490.0,0.00016785,2]
[366213028,1750123850870,-490.0,0.00016785,2]
[366213029,1750123850879,-236.59,0.00016785,2]
[366213030,1750123850889,-490.0,0.00016785,2]
[366213031,1750123850899,-333.36,0.00016785,2]
[366213032,1750123850910,-1294.24353989,0.0001679,2]
[366213033,1750123850920,-3088.908,0.00016791,2]
[366213034,1750123850930,-150.0,0.00016794,2]
[366213035,1750123850940,-1000.0,0.00016798,2]
[366213036,1750123850950,-280.0,0.00016803,4]
[366213037,1750123850962,-449.22672998,0.00016816,2]
[366213038,1750123850974,-150.0,0.00016818,2]
[366213039,1750123850984,-222.0,0.00016819,2]
[366213040,1750123850994,-150.0,0.00016819,2]
[366213041,1750123851003,-1000.0,0.00016821,2]
[366213042,1750123851015,-150.0,0.00016825,2]
[366213043,1750123851025,-1294.24353989,0.00016845,2]
[366213044,1750123851035,-449.22672998,0.00016858,2]
[366213045,1750123851045,-150.0,0.00016861,2]
[366213046,1750123851057,-2000.0,0.00016864,2]
[366213047,1750123851067,-500.0,0.00016864,2]
[366213048,1750123851077,-200.0,0.00016864,2]
[366213049,1750123851087,-150.0,0.0001687,2]
[366213050,1750123851098,-1000.0,0.00016884,2]
[366213051,1750123851108,-329.83272598,0.000169,2]
[366213052,1750123851118,-1094.83954378,0.000169,2]
[366213053,1750123851128,-1294.24353989,0.000169,2]
[366213054,1750123851138,-376.0,0.000169,2]
[366213055,1750123851149,-769.0,0.000169,2]
[366213056,1750123851158,-449.22672998,0.000169,2]
[366213057,1750123851171,-237.0,0.000169,2]
[366213058,1750123851181,-2192.52414631,0.000169,2]
[366213059,1750123851191,-1000.0,0.00016908,2]
[366213060,1750123851202,-168.0,0.00016927,2]
[366213061,1750123851211,-490.0,0.00016947,2]
[366213062,1750123851222,-531.61,0.00016947,2]
[366213063,1750123851232,-496.91,0.00016947,2]
[366213064,1750123851241,-490.0,0.00016947,2]
[366213065,1750123851251,-490.0,0.00016947,2]
[366213066,1750123851262,-653.47,0.00016947,2]
[366213067,1750123851272,-499.46,0.00016947,2]
[366213068,1750123851282,-614.19,0.00016947,2]
[366213069,1750123851292,-423.98935857,0.00016947,2]
[366213070,1750123851305,-66.01064143,0.00016947,2]
[366213071,1750123851315,-538.89,0.00016947,2]
[366213072,1750123851324,-795.62,0.00016947,2]
[366213073,1750123851334,-490.0,0.00016947,2]
[366213074,1750123851345,-608.52,0.00016947,2]
[366213075,1750123851355,-490.0,0.00016947,2]
[366213076,1750123851365,-490.0,0.00016947,2]
[366213077,1750123851375,-522.35,0.00016947,2]
[366213078,1750123851385,-490.0,0.00016947,2]
[366213079,1750123851394,-152.62,0.00016947,2]
[366213080,1750123851405,-546.33,0.00016947,2]
[366213081,1750123851416,-609.93,0.00016947,2]
[366213082,1750123851426,-1159.68,0.00016947,2]
[366213083,1750123851436,-252.54,0.00016947,2]
[366213084,1750123851446,-490.0,0.00016947,2]
[366213085,1750123851455,-527.79,0.00016947,2]
[366213086,1750123851466,-490.0,0.00016947,2]
[366213087,1750123851476,-490.0,0.00016947,2]
[366213088,1750123851486,-617.94,0.00016947,2]
[366213089,1750123851496,-830.56,0.00016947,2]
[366213090,1750123851506,-490.0,0.00016947,2]
[366213091,1750123851516,-490.0,0.00016947,2]
[366213092,1750123851526,-2045.94,0.00016947,2]
[366213093,1750123851535,-1576.8,0.00016947,2]
[366213094,1750123851545,-683.47,0.00016947,2]
[366213095,1750123851555,-666.2,0.00016947,2]
[366213096,1750123851565,-490.0,0.00016947,2]
[366213097,1750123851576,-324.9,0.00016947,2]
[366213098,1750123851586,-490.0,0.00016947,2]
[366213099,1750123851596,-490.0,0.00016947,2]
[366213100,1750123851607,-490.0,0.00016947,2]
[366213101,1750123851617,-490.0,0.00016947,2]
[366213102,1750123851627,-179.48,0.00016947,2]
[366213103,1750123851638,-490.0,0.00016947,2]
[366213104,1750123851648,-620.57,0.00016947,2]
[366213105,1750123851657,-984.75,0.00016947,2]
[366213106,1750123851668,-490.0,0.00016947,2]
[366213107,1750123851678,-630.99,0.00016947,2]
[366213108,1750123851687,-490.0,0.00016947,2]
[366213109,1750123851697,-346.48412786,0.00016947,2]
[366213110,1750123851708,-547.27791396,0.00016947,2]
[366213111,1750123851718,-228.01251702,0.00016947,2]
[366213112,1750123851728,-490.0,0.00016947,2]
[366213113,1750123851737,-490.0,0.00016947,2]
[366213114,1750123851748,-1203.7,0.00016947,2]
[366213115,1750123851758,-490.0,0.00016947,2]
[366213116,1750123851768,-490.0,0.00016947,2]
[366213117,1750123851778,-490.0,0.00016947,2]
[366213118,1750123851788,-490.0,0.00016947,2]
[366213119,1750123851798,-490.0,0.00016947,2]
[366213120,1750123851808,-490.0,0.00016948,2]
[366213121,1750123851818,-490.0,0.00016948,2]
[366213122,1750123851827,-490.0,0.00016948,2]
[366213123,1750123851837,-490.0,0.00016948,2]
[366213124,1750123851847,-490.0,0.00016948,2]
[366213125,1750123851958,-490.0,0.00016948,2]
[366213126,1750123852013,-490.0,0.00016948,2]
[366213127,1750123852026,-454.05,0.00016948,2]
[366213128,1750123852036,-490.0,0.00016948,2]
[366213129,1750123852047,-490.0,0.00016948,2]
[366213130,1750123852057,-490.0,0.00016948,2]
[366213131,1750123852067,-622.22,0.00016948,2]
[366213132,1750123852078,-490.0,0.00016948,2]
[366213133,1750123852087,-490.0,0.00016948,2]
[366213134,1750123852097,-475.01,0.00016948,2]
[366213135,1750123852107,-490.0,0.00016948,2]
[366213136,1750123852117,-587.35,0.00016948,2]
[366213137,1750123852127,-490.0,0.00016948,2]
[366213138,1750123852138,-536.02,0.00016948,2]
[366213139,1750123852148,-473.89272039,0.00016948,2]
[366213140,1750123852158,-490.0,0.00016948,2]
[366213141,1750123852170,-490.0,0.00016948,2]
[366213142,1750123852179,-356.62,0.00016948,2]
[366213143,1750123852189,-281.91,0.00016948,2]
[366213144,1750123852199,-490.0,0.00016948,2]
[366213145,1750123852208,-490.0,0.00016948,2]
[366213146,1750123852218,-490.0,0.00016948,2]
[366213147,1750123852228,-426.05223439,0.00016948,2]
[366213148,1750123852238,-490.0,0.00016948,2]
[366213149,1750123852247,-490.0,0.00016948,2]
[366213150,1750123852257,-490.0,0.00016948,2]
[366213151,1750123852266,-490.0,0.00016948,2]
[366213152,1750123852276,-362.28582893,0.00016948,2]
[366213153,1750123852501,-1306.62710623,0.00016506,2]
[366213154,1750123852525,-2026.37289377,0.00016506,2]
[366213155,1750123852536,-127.71417107,0.00016948,2]
[366213156,1750123852546,-490.0,0.00016948,2]
[366213157,1750123852555,-490.0,0.00016948,2]
[366213158,1750123852566,-490.0,0.00016948,2]
[366213159,1750123852575,-533.71,0.00016948,2]
[366213160,1750123852585,-490.0,0.00016948,2]
[366213161,1750123852594,-490.0,0.00016948,2]
[366213162,1750123852604,-490.0,0.00016948,2]
[366213163,1750123852614,-250.85,0.00016948,2]
[366213164,1750123852625,-242.66,0.00016948,2]
[366213165,1750123852636,-518.39,0.00016948,2]
[366213166,1750123852645,-490.0,0.00016948,2]
[366213167,1750123852655,-367.23,0.00016948,2]
[366213168,1750123852665,-183.5,0.00016948,2]
[366213169,1750123852674,-316.92,0.00016948,2]
[366213170,1750123852684,-490.0,0.00016948,2]
[366213171,1750123852693,-490.0,0.00016948,2]
[366213172,1750123852703,-490.0,0.00016948,2]
[366213173,1750123852713,-490.0,0.00016948,2]
[366213174,1750123852723,-490.0,0.00016948,2]
[366213175,1750123852733,-550.1,0.00016948,2]
[366213176,1750123852743,-12.09057796,0.00016948,2]
[366213177,1750123852755,-477.90942204,0.00016948,2]
[366213178,1750123852765,-490.0,0.00016948,2]
[366213179,1750123852774,-490.0,0.00016948,2]
[366213180,1750123852783,-490.0,0.00016948,2]
[366213181,1750123852794,-490.0,0.00016948,2]
[366213182,1750123852803,-1116.57,0.00016948,2]
[366213183,1750123852813,-490.0,0.00016948,2]
[366213184,1750123852822,-490.0,0.00016948,2]
[366213185,1750123852831,-424.85886598,0.00016948,2]
[366213186,1750123852842,-65.14113402,0.00016948,2]
[366213187,1750123852852,-203.46886598,0.00016948,2]
[366213188,1750123852867,-286.53113402,0.00016948,2]
[366213189,1750123852876,-1114.34,0.00016948,2]
[366213190,1750123852886,-490.0,0.00016948,2]
[366213191,1750123852895,-490.0,0.00016948,2]
[366213192,1750123852904,-889.5,0.00016948,2]
[366213193,1750123852913,-490.0,0.00016948,2]
[366213194,1750123852923,-490.0,0.00016948,2]
[366213195,1750123852933,-1001.42,0.00016948,2]
[366213196,1750123852943,-490.0,0.00016948,2]
[366213197,1750123852952,-587.69,0.00016948,2]
[366213198,1750123852961,-490.0,0.00016948,2]
[366213199,1750123852971,-490.0,0.00016948,2]
[366213200,1750123852982,-978.55,0.00016948,2]
[366213201,1750123852991,-490.0,0.00016948,2]
[366213202,1750123853001,-170.95,0.00016948,2]
[366213203,1750123853010,-490.0,0.00016948,2]
[366213204,1750123853021,-331.85,0.00016948,2]
[366213205,1750123853032,-466.78,0.00016948,2]
[366213206,1750123853042,-490.0,0.00016948,2]
[366213207,1750123853055,-490.0,0.00016948,2]
[366213208,1750123853065,-490.0,0.00016948,2]
[366213209,1750123853075,-545.1,0.00016948,2]
[366213210,1750123853085,-490.0,0.00016948,2]
[366213211,1750123853094,-1417.64,0.00016948,2]
[366213212,1750123853104,-490.0,0.00016948,2]
[366213213,1750123853114,-345.57,0.00016948,2]
[366213214,1750123853124,-1310.61,0.00016948,2]
[366213215,1750123853135,-2902.24,0.00016948,2]
[366213216,1750123853145,-490.0,0.00016948,2]
[366213217,1750123853155,-151.05,0.00016948,2]
[366213218,1750123853165,-1068.35,0.00016948,2]
[366213219,1750123853177,-591.5,0.00016948,2]
[366213220,1750123853187,-458.45,0.00016948,2]
[366213221,1750123853196,-243.97,0.00016948,2]
[366213222,1750123853206,-836.26,0.00016948,2]
[366213223,1750123853216,-490.0,0.00016948,2]
[366213224,1750123853226,-490.0,0.00016948,2]
[366213225,1750123853236,-2136.7,0.00016948,2]
[366213226,1750123853246,-548.55,0.00016948,2]
[366213227,1750123853255,-251.09,0.00016948,2]
[366213228,1750123853265,-2519.89,0.00016948,2]
[366213229,1750123853275,-490.0,0.00016948,2]
[366213230,1750123853285,-500.0,0.00016948,2]
[366213231,1750123853295,-490.0,0.00016948,2]
[366213232,1750123853305,-490.0,0.00016948,2]
[366213233,1750123853314,-366.33,0.00016948,2]
[366213234,1750123853324,-490.0,0.00016948,2]
[366213235,1750123853333,-490.0,0.00016948,2]
[366213236,1750123853343,-490.0,0.00016948,2]
[366213237,1750123853353,-490.0,0.00016948,2]
[366213238,1750123853363,-490.0,0.00016948,2]
[366213239,1750123853373,-588.46,0.00016948,2]
[366213240,1750123853382,-490.0,0.00016948,2]
[366213241,1750123853392,-490.0,0.00016948,2]
[366213242,1750123853404,-490.0,0.00016948,2]
[366213243,1750123853415,-490.0,0.00016948,2]
[366213244,1750123853425,-1113.71,0.00016948,2]
[366213245,1750123853436,-490.0,0.00016948,2]
[366213246,1750123853446,-266.26,0.00016948,2]
[366213247,1750123853456,-490.0,0.00016948,2]
[366213248,1750123853466,-292.91,0.00016948,2]
[366213249,1750123853476,-490.0,0.00016948,2]
[366213250,1750123853486,-490.0,0.00016948,2]
[366213251,1750123853496,-490.0,0.00016948,2]
[366213252,1750123853506,-3941.04,0.00016948,2]
[366213253,1750123853516,-417.4814893,0.00016948,2]
[366213254,1750123853526,-599.36,0.00016948,2]
[366213255,1750123853537,-490.0,0.00016948,2]
[366213256,1750123853546,-490.0,0.00016948,2]
[366213257,1750123853556,-461.24122314,0.00016948,2]
[366213258,1750123853566,-490.0,0.00016948,2]
[366213259,1750123853575,-490.0,0.00016948,2]
[366213260,1750123853585,-567.92,0.00016949,2]
[366213261,1750123853595,-490.0,0.00016949,2]
[366213262,1750123853605,-490.0,0.00016949,2]
[366213263,1750123853615,-490.0,0.00016949,2]
[366213264,1750123853625,-490.0,0.00016949,2]
[366213265,1750123853635,-512.08,0.00016949,2]
[366213266,1750123853645,-208.23,0.00016949,2]
[366213267,1750123853656,-490.0,0.00016949,2]
[366213268,1750123853666,-490.0,0.00016949,2]
[366213269,1750123853676,-490.0,0.00016949,2]
[366213270,1750123853687,-490.0,0.00016949,2]
[366213271,1750123853697,-490.0,0.00016949,2]
[366213272,1750123853707,-626.34,0.00016949,2]
[366213273,1750123853717,-490.0,0.00016949,2]
[366213274,1750123853726,-490.0,0.00016949,2]
[366213275,1750123853736,-490.0,0.00016949,2]
[366213276,1750123853745,-213.56,0.00016949,2]
[366213277,1750123853756,-490.0,0.00016949,2]
[366213278,1750123853765,-490.0,0.00016949,2]
[366213279,1750123853775,-490.0,0.00016949,2]
[366213280,1750123853784,-399.68,0.00016949,2]
[366213281,1750123853794,-554.08,0.00016949,2]
[366213282,1750123853803,-490.0,0.00016949,2]
[366213283,1750123853814,-490.0,0.00016949,2]
[366213284,1750123853823,-490.0,0.00016949,2]
[366213285,1750123853833,-600.88,0.00016949,2]
[366213286,1750123853842,-490.0,0.00016949,2]
[366213287,1750123853852,-490.0,0.00016949,2]
[366213288,1750123853862,-490.0,0.00016949,2]
[366213289,1750123853871,-490.0,0.00016949,2]
[366213290,1750123853882,-490.0,0.00016949,2]
[366213291,1750123853891,-188.35,0.00016949,2]
[366213292,1750123853901,-150.0,0.00016955,2]
[366213293,1750123853911,-280.0,0.00016966,2]
[366213294,1750123853924,-633.88830166,0.00016967,2]
[366213295,1750123853934,-500.0,0.00016973,2]
[366213296,1750123853945,-500.0,0.00016973,2]
[366213297,1750123853955,-439.33118383,0.00016973,2]
[366213298,1750123853973,-60.66881617,0.00016973,2]
[366213299,1750123853985,-500.0,0.00016973,2]
[366213300,1750123853995,-1000.0,0.00016979,2]
[366213301,1750123854005,-152.22990171,0.00016983,2]
[366213302,1750123854015,-350.0,0.00016983,2]
[366213303,1750123854025,-150.0,0.00016984,3]
[366213304,1750123854035,-150.0,0.00016984,3]
[366213305,1750123854045,-500.0,0.00016984,3]
[366213306,1750123854056,-150.0,0.00016984,2]
[366213307,1750123854066,-150.0,0.00016984,3]
[366213308,1750123854076,-500.0,0.00016984,3]
[366213309,1750123854092,-767.0,0.00016986,2]
[366213310,1750123854102,-1310.77759696,0.00016999,5]
[366213311,1750123854112,-666.0,0.00016999,2]
[366213312,1750123854122,-999.204,0.00016999,2]
[366213313,1750123854132,-239.14,0.00016999,2]
[366213314,1750123854143,-300.0,0.00016999,2]
[366213315,1750123854154,-82.43336912,0.00016999,2]
[366213316,1750123854167,-217.56663088,0.00016999,2]
[366213317,1750123854179,-889.5,0.00016999,2]
[366213318,1750123854190,-889.5,0.00016999,2]
[366213319,1750123854200,-674.28135201,0.00016999,2]
[366213320,1750123854227,-490.0,0.00016618,2]
[366213321,1750123854535,-215.21864799,0.00016999,2]
[366213322,1750123854546,-46.66915868,0.00016999,2]